fUST/lending_fUST_20250727
["ID","MTS","AMOUNT","RATE_DAILY","PERIOD"]
[375281838,1753615861368,-160.0,0.0002013,2]
[375281839,1753615861378,-390.328217,0.00020187,2]
[375281840,1753615861388,-160.0,0.0002021,2]
[375281841,1753615861398,-214.84090509,0.0002021,2]
[375281842,1753615861408,-160.0,0.00020212,2]
[375281843,1753615861418,-160.0,0.00020212,2]
[375281844,1753615861428,-160.0,0.00020212,2]
[375281845,1753615861437,-160.0,0.00020212,2]
[375281846,1753615861446,-526.50274803,0.00020212,2]
[375281847,1753615861456,-216.01841554,0.00020212,2]
[375281848,1753615861464,-477.07289566,0.00020212,2]
[375281849,1753615861473,-840.75038169,0.00020212,2]
[375281850,1753615861483,-231.30466539,0.00020212,2]
[375281851,1753615861492,-160.0,0.00020212,2]
[375281852,1753615861502,-160.0,0.00020212,2]
[375281853,1753615861513,-160.0,0.00020212,2]
[375281854,1753615861524,-12632.25855046,0.00020212,2]
[375281855,1753615861534,-151.0,0.00020225,2]
[375281856,1753615861543,-500.0,0.00020262,2]
[375281857,1753615861553,-352.80963287,0.00020268,2]
[375281858,1753615861563,-1500.0,0.00020268,2]
[375281859,1753615861572,-1500.0,0.00020268,2]
[375281860,1753615861582,-501.19555636,0.00020268,2]
[375281861,1753615861591,-500.0,0.00020268,2]
[375281862,1753615861601,-501.25117299,0.00020268,2]
[375281863,1753615861611,-1500.0,0.00020268,2]
[375281864,1753615861620,-1500.0,0.00020268,2]
[375281865,1753615861630,-804.20277847,0.00020268,2]
[375281866,1753615861640,-500.0,0.00020268,2]
[375281867,1753615861650,-460.0,0.00020273,2]
[375281868,1753615861659,-460.0,0.00020273,2]
[375281869,1753615861669,-460.0,0.00020273,2]
[375281870,1753615861679,-151.0,0.00020273,2]
[375281871,1753615861689,-460.0,0.00020273,2]
[375281872,1753615861698,-460.0,0.00020273,2]
[375281873,1753615861708,-460.0,0.00020273,2]
[375281874,1753615861717,-460.0,0.00020273,2]
[375281875,1753615861727,-1311.09,0.00020273,2]
[375281876,1753615861737,-460.0,0.00020273,2]
[375281877,1753615861747,-460.0,0.00020273,2]
[375281878,1753615861757,-460.0,0.00020273,2]
[375281879,1753615861767,-460.0,0.00020273,2]
[375281880,1753615861776,-460.0,0.00020273,2]
[375281881,1753615861787,-465.19603535,0.00020273,2]
[375281882,1753615861797,-460.0,0.00020273,2]
[375281883,1753615861807,-460.0,0.00020273,2]
[375281884,1753615861816,-460.0,0.00020273,2]
[375281885,1753615861826,-460.0,0.00020273,2]
[375281886,1753615861835,-1237.56,0.00020273,2]
[375281887,1753615861846,-460.0,0.00020273,2]
[375281888,1753615861856,-460.0,0.00020273,2]
[375281889,1753615861867,-460.0,0.00020273,2]
[375281890,1753615861876,-463.99589091,0.00020273,2]
[375281891,1753615861887,-471.99118677,0.00020273,2]
[375281892,1753615861896,-462.52739656,0.00020273,2]
[375281893,1753615861906,-460.0,0.00020273,2]
[375281894,1753615861915,-223.15434713,0.00020273,2]
[375281895,1753615861925,-460.0,0.00020273,2]
[375281896,1753615861935,-460.0,0.00020273,2]
[375281897,1753615861945,-460.0,0.00020273,2]
[375281898,1753615861954,-460.0,0.00020273,2]
[375281899,1753615861963,-460.0,0.00020273,2]
[375281900,1753615861973,-1780.04,0.00020273,2]
[375281901,1753615861983,-460.0,0.00020273,2]
[375281902,1753615861993,-460.0,0.00020273,2]
[375281903,1753615862002,-460.0,0.00020273,2]
[375281904,1753615862012,-460.0,0.00020273,2]
[375281905,1753615862021,-460.0,0.00020273,2]
[375281906,1753615862031,-460.0,0.00020273,2]
[375281907,1753615862042,-460.0,0.00020273,2]
[375281908,1753615862052,-460.0,0.00020273,2]
[375281909,1753615862061,-460.0,0.00020273,2]
[375281910,1753615862071,-460.0,0.00020273,2]
[375281911,1753615862081,-460.0,0.00020273,2]
[375281912,1753615862090,-460.0,0.00020273,2]
[375281913,1753615862100,-460.0,0.00020273,2]
[375281914,1753615862110,-460.0,0.00020273,2]
[375281915,1753615862119,-460.0,0.00020273,2]
[375281916,1753615862128,-460.0,0.00020273,2]
[375281917,1753615862138,-460.0,0.00020273,2]
[375281918,1753615862147,-460.0,0.00020273,2]
[375281919,1753615862156,-292.8985634,0.00020273,2]
[375281920,1753615862166,-460.0,0.00020273,2]
[375281921,1753615862175,-460.0,0.00020273,2]
[375281922,1753615862184,-460.0,0.00020273,2]
[375281923,1753615862193,-151.0,0.00020273,2]
[375281924,1753615862202,-460.0,0.00020273,2]
[375281925,1753615862212,-460.0,0.00020273,2]
[375281926,1753615862221,-460.0,0.00020273,2]
[375281927,1753615862230,-151.0,0.00020273,2]
[375281928,1753615862240,-460.0,0.00020273,2]
[375281929,1753615862249,-460.0,0.00020273,2]
[375281930,1753615862258,-460.0,0.00020273,2]
[375281931,1753615862268,-460.0,0.00020273,2]
[375281932,1753615862277,-460.0,0.00020273,2]
[375281933,1753615862288,-460.0,0.00020273,2]
[375281934,1753615862298,-460.0,0.00020273,2]
[375281935,1753615862308,-460.0,0.00020273,2]
[375281936,1753615862317,-460.0,0.00020273,2]
[375281937,1753615862327,-460.0,0.00020273,2]
[375281938,1753615862336,-460.0,0.00020273,2]
[375281939,1753615862345,-151.0,0.00020273,2]
[375281940,1753615862354,-474.12072006,0.00020273,2]
[375281941,1753615862364,-460.0,0.00020273,2]
[375281942,1753615862374,-460.0,0.00020273,2]
[375281943,1753615862383,-628.25,0.00020273,2]
[375281944,1753615862393,-460.0,0.00020273,2]
[375281945,1753615862402,-460.0,0.00020273,2]
[375281946,1753615862496,-151.0,0.00020273,2]
[375281947,1753615862506,-460.0,0.00020273,2]
[375281948,1753615862523,-460.0,0.00020273,2]
[375281949,1753615862534,-588.88,0.00020273,2]
[375281950,1753615862543,-460.0,0.00020273,2]
[375281951,1753615862554,-460.0,0.00020273,2]
[375281952,1753615862563,-460.0,0.00020273,2]
[375281953,1753615862573,-460.0,0.00020273,2]
[375281954,1753615862584,-460.0,0.00020273,2]
[375281955,1753615862596,-460.0,0.00020273,2]
[375281956,1753615862607,-424.26528013,0.00020273,2]
[375281957,1753615862617,-482.95,0.00020273,2]
[375281958,1753615862627,-460.0,0.00020273,2]
[375281959,1753615862637,-460.0,0.00020273,2]
[375281960,1753615862647,-460.0,0.00020273,2]
[375281961,1753615862657,-460.0,0.00020273,2]
[375281962,1753615862667,-460.0,0.00020273,2]
[375281963,1753615862677,-460.0,0.00020273,2]
[375281964,1753615862687,-460.0,0.00020273,2]
[375281965,1753615862698,-460.0,0.00020273,2]
[375281966,1753615862709,-460.0,0.00020273,2]
[375281967,1753615862718,-460.0,0.00020273,2]
[375281968,1753615862727,-460.0,0.00020273,2]
[375281969,1753615862738,-460.0,0.00020273,2]
[375281970,1753615862748,-460.0,0.00020273,2]
[375281971,1753615862759,-460.0,0.00020273,2]
[375281972,1753615862769,-399.6725939,0.00020273,2]
[375281973,1753615862780,-460.0,0.00020273,2]
[375281974,1753615862790,-460.0,0.00020273,2]
[375281975,1753615862800,-460.0,0.00020273,2]
[375281976,1753615862811,-285.56053771,0.00020273,2]
[375281977,1753615862821,-417.28232043,0.00020273,2]
[375281978,1753615862832,-460.0,0.00020273,2]
[375281979,1753615862842,-460.0,0.00020273,2]
[375281980,1753615862851,-460.0,0.00020273,2]
[375281981,1753615862861,-460.0,0.00020273,2]
[375281982,1753615862871,-481.11,0.00020273,2]
[375281983,1753615862881,-460.0,0.00020273,2]
[375281984,1753615862890,-460.0,0.00020273,2]
[375281985,1753615862900,-700.52,0.00020273,2]
[375281986,1753615862910,-460.0,0.00020273,2]
[375281987,1753615862920,-522.64,0.00020273,2]
[375281988,1753615862930,-460.0,0.00020273,2]
[375281989,1753615862939,-460.0,0.00020273,2]
[375281990,1753615862949,-473.84,0.00020273,2]
[375281991,1753615862958,-460.0,0.00020273,2]
[375281992,1753615862968,-460.0,0.00020273,2]
[375281993,1753615862977,-460.0,0.00020273,2]
[375281994,1753615862986,-460.0,0.00020273,2]
[375281995,1753615862996,-460.0,0.00020273,2]
[375281996,1753615863006,-460.0,0.00020273,2]
[375281997,1753615863014,-151.0,0.00020273,2]
[375281998,1753615863024,-460.0,0.00020273,2]
[375281999,1753615863033,-460.0,0.00020273,2]
[375282000,1753615863043,-151.0,0.00020273,2]
[375282001,1753615863054,-460.0,0.00020273,2]
[375282002,1753615863064,-460.0,0.00020273,2]
[375282003,1753615863073,-460.0,0.00020273,2]
[375282004,1753615863084,-460.0,0.00020273,2]
[375282005,1753615863094,-460.0,0.00020273,2]
[375282006,1753615863103,-460.0,0.00020273,2]
[375282007,1753615863113,-463.85762846,0.00020273,2]
[375282008,1753615863123,-460.0,0.00020273,2]
[375282009,1753615863132,-2233.63,0.00020273,2]
[375282010,1753615863142,-460.0,0.00020273,2]
[375282011,1753615863151,-460.0,0.00020273,2]
[375282012,1753615863161,-460.0,0.00020273,2]
[375282013,1753615863171,-1630.4,0.00020273,2]
[375282014,1753615863180,-165.910144,0.00020273,2]
[375282015,1753615863190,-460.0,0.00020273,2]
[375282016,1753615863200,-151.0,0.00020273,2]
[375282017,1753615863209,-460.0,0.00020273,2]
[375282018,1753615863219,-460.0,0.00020273,2]
[375282019,1753615863229,-772.54,0.00020273,2]
[375282020,1753615863238,-151.0,0.00020273,2]
[375282021,1753615863248,-460.0,0.00020273,2]
[375282022,1753615863257,-460.0,0.00020273,2]
[375282023,1753615863267,-565.5,0.00020273,2]
[375282024,1753615863278,-460.0,0.00020273,2]
[375282025,1753615863288,-229.11633459,0.00020273,2]
[375282026,1753615863465,-230.88366541,0.00020273,2]
[375282027,1753615863475,-460.0,0.00020273,2]
[375282028,1753615863485,-466.93380232,0.00020273,2]
[375282029,1753615863495,-460.0,0.00020273,2]
[375282030,1753615863505,-466.14,0.00020273,2]
[375282031,1753615863517,-265.73440307,0.00020273,2]
[375282032,1753615863528,-460.0,0.00020273,2]
[375282033,1753615863540,-460.0,0.00020273,2]
[375282034,1753615863550,-554.36,0.00020273,2]
[375282035,1753615863638,-460.0,0.00020273,2]
[375282036,1753615863649,-460.0,0.00020273,2]
[375282037,1753615863658,-460.0,0.00020273,2]
[375282038,1753615863669,-203.73830728,0.00020273,2]
[375282039,1753615863679,-460.0,0.00020273,2]
[375282040,1753615863689,-939.82,0.00020273,2]
[375282041,1753615863699,-1030.95593511,0.00020273,2]
[375282042,1753615863711,-1017.00406489,0.00020273,2]
[375282043,1753615863722,-1111.37,0.00020273,2]
[375282044,1753615863733,-460.0,0.00020273,2]
[375282045,1753615863743,-460.0,0.00020273,2]
[375282046,1753615863753,-1411.8,0.00020273,2]
[375282047,1753615863763,-601.19,0.00020273,2]
[375282048,1753615863773,-460.0,0.00020273,2]
[375282049,1753615863783,-460.0,0.00020273,2]
[375282050,1753615863795,-460.0,0.00020273,2]
[375282051,1753615863806,-460.0,0.00020273,2]
[375282052,1753615863816,-460.0,0.00020273,2]
[375282053,1753615863825,-460.0,0.00020273,2]
[375282054,1753615863835,-460.0,0.00020273,2]
[375282055,1753615863846,-460.0,0.00020273,2]
[375282056,1753615863856,-460.0,0.00020273,2]
[375282057,1753615863866,-460.0,0.00020273,2]
[375282058,1753615863876,-734.55,0.00020273,2]
[375282059,1753615863887,-460.0,0.00020273,2]
[375282060,1753615863897,-460.0,0.00020273,2]
[375282061,1753615863907,-817.55,0.00020273,2]
[375282062,1753615863918,-460.0,0.00020273,2]
[375282063,1753615863928,-460.0,0.00020273,2]
[375282064,1753615863937,-460.0,0.00020273,2]
[375282065,1753615863948,-460.0,0.00020273,2]
[375282066,1753615863958,-1243.43,0.00020273,2]
[375282067,1753615863969,-460.0,0.00020273,2]
[375282068,1753615863979,-460.0,0.00020273,2]
[375282069,1753615863990,-460.0,0.00020273,2]
[375282070,1753615864000,-460.0,0.00020273,2]
[375282071,1753615864012,-460.0,0.00020273,2]
[375282072,1753615864021,-460.0,0.00020273,2]
[375282073,1753615864031,-460.0,0.00020273,2]
[375282074,1753615864042,-460.0,0.00020273,2]
[375282075,1753615864052,-460.0,0.00020273,2]
[375282076,1753615864061,-460.0,0.00020273,2]
[375282077,1753615864071,-178.419688,0.00020273,2]
[375282078,1753615864081,-460.0,0.00020273,2]
[375282079,1753615864091,-460.0,0.00020273,2]
[375282080,1753615864103,-460.0,0.00020273,2]
[375282081,1753615864112,-178.419688,0.00020273,2]
[375282082,1753615864122,-460.0,0.00020273,2]
[375282083,1753615864132,-460.0,0.00020273,2]
[375282084,1753615864142,-460.0,0.00020273,2]
[375282085,1753615864153,-465.8153443,0.00020273,2]
[375282086,1753615864163,-4262.34,0.00020273,2]
[375282087,1753615864183,-460.0,0.00020273,2]
[375282088,1753615864201,-3803.86,0.00020273,2]
[375282089,1753615864219,-460.0,0.00020273,2]
[375282090,1753615864238,-151.0,0.00020273,2]
[375282091,1753615864259,-471.21,0.00020273,2]
[375282092,1753615864277,-492.93,0.00020273,2]
[375282093,1753615864295,-1381.0,0.00020273,2]
[375282094,1753615864312,-460.0,0.00020273,2]
[375282095,1753615864326,-1164.21,0.00020273,2]
[375282096,1753615864346,-460.0,0.00020273,2]
[375282097,1753615864366,-460.0,0.00020273,2]
[375282098,1753615864382,-460.0,0.00020273,2]
[375282099,1753615864394,-460.0,0.00020273,2]
[375282100,1753615864414,-635.9,0.00020273,2]
[375282101,1753615864426,-160.0,0.00020273,2]
[375282102,1753615864442,-460.0,0.00020273,2]
[375282103,1753615864456,-1473.58,0.00020273,2]
[375282104,1753615864470,-460.0,0.00020273,2]
[375282105,1753615864484,-460.0,0.00020273,2]
[375282106,1753615864498,-460.0,0.00020273,2]
[375282107,1753615864514,-460.0,0.00020273,2]
[375282108,1753615864529,-460.0,0.00020273,2]
[375282109,1753615864544,-460.0,0.00020273,2]
[375282110,1753615864559,-460.0,0.00020273,2]
[375282111,1753615864573,-460.0,0.00020273,2]
[375282112,1753615864588,-460.0,0.00020273,2]
[375282113,1753615864602,-460.0,0.00020273,2]
[375282114,1753615864616,-460.0,0.00020273,2]
[375282115,1753615864631,-2848.85961,0.00020314,3]
[375282116,1753615864646,-441.10640156,0.00020321,2]
[375282117,1753615864661,-1000.0,0.00020321,2]
[375282118,1753615864673,-1000.0,0.00020321,2]
[375282119,1753615864683,-1000.0,0.00020321,2]
[375282120,1753615864693,-1000.0,0.00020321,2]
[375282121,1753615864702,-509.37952605,0.00020321,2]
[375282122,1753615864713,-1000.0,0.00020321,2]
[375282123,1753615864722,-1000.0,0.00020321,2]
[375282124,1753615864731,-1483.66,0.00020332,3]
[375282125,1753615864741,-741.82,0.00020332,3]
[375282126,1753615864750,-370.92,0.00020332,3]
[375282127,1753615864760,-2091.35341266,0.00020447,2]
[375282128,1753615864770,-1000.0,0.00020521,2]
[375282129,1753615864779,-502.01696615,0.00020521,2]
[375282130,1753615864790,-265.66964152,0.00020521,2]
[375282131,1753615864800,-1000.0,0.00020521,2]
[375282132,1753615864810,-1000.0,0.00020521,2]
[375282133,1753615864820,-533.85381126,0.00020521,2]
[375282134,1753615864830,-502.49019685,0.00020521,2]
[375282135,1753615864839,-2848.85961,0.00020521,3]
[375282136,1753615864849,-500.0,0.00020536,2]
[375282137,1753615864858,-460.0,0.00020547,2]
[375282138,1753615864868,-460.0,0.00020547,2]
[375282139,1753615864878,-460.0,0.00020547,2]
[375282140,1753615864888,-460.0,0.00020547,2]
[375282141,1753615865026,-460.0,0.00020547,2]
[375282142,1753615865099,-460.0,0.00020547,2]
[375282143,1753615865113,-1311.09,0.00020547,2]
[375282144,1753615865123,-460.0,0.00020547,2]
[375282145,1753615865133,-460.0,0.00020547,2]
[375282146,1753615865143,-460.0,0.00020547,2]
[375282147,1753615865152,-460.0,0.00020547,2]
[375282148,1753615865162,-460.0,0.00020547,2]
[375282149,1753615865172,-341.15063545,0.00020547,2]
[375282150,1753615865182,-460.0,0.00020547,2]
[375282151,1753615865191,-460.0,0.00020547,2]
[375282152,1753615865200,-1237.56,0.00020547,2]
[375282153,1753615865210,-460.0,0.00020547,2]
[375282154,1753615865219,-460.0,0.00020547,2]
[375282155,1753615865228,-460.0,0.00020547,2]
[375282156,1753615865238,-460.0,0.00020547,2]
[375282157,1753615865247,-460.0,0.00020547,2]
[375282158,1753615865256,-159.40820876,0.00020547,2]
[375282159,1753615865266,-1780.04,0.00020547,2]
[375282160,1753615865275,-460.0,0.00020547,2]
[375282161,1753615865284,-460.0,0.00020547,2]
[375282162,1753615865294,-460.0,0.00020547,2]
[375282163,1753615865304,-460.0,0.00020547,2]
[375282164,1753615865313,-460.0,0.00020547,2]
[375282165,1753615865322,-460.0,0.00020547,2]
[375282166,1753615865331,-496.49834322,0.00020547,2]
[375282167,1753615865341,-151.0,0.00020547,2]
[375282168,1753615865350,-154.90906,0.00020547,2]
[375282169,1753615865360,-460.0,0.00020547,2]
[375282170,1753615865370,-151.0,0.00020547,2]
[375282171,1753615865379,-465.72489267,0.00020547,2]
[375282172,1753615865388,-460.0,0.00020547,2]
[375282173,1753615865397,-460.0,0.00020547,2]
[375282174,1753615865407,-460.0,0.00020547,2]
[375282175,1753615865416,-460.0,0.00020547,2]
[375282176,1753615865425,-460.0,0.00020547,2]
[375282177,1753615865435,-460.0,0.00020547,2]
[375282178,1753615865444,-247.84611646,0.00020547,2]
[375282179,1753615865453,-460.0,0.00020547,2]
[375282180,1753615865462,-460.0,0.00020547,2]
[375282181,1753615865471,-460.0,0.00020547,2]
[375282182,1753615865480,-472.65367511,0.00020547,2]
[375282183,1753615865489,-460.0,0.00020547,2]
[375282184,1753615865498,-460.0,0.00020547,2]
[375282185,1753615865508,-460.0,0.00020547,2]
[375282186,1753615865519,-558.52710415,0.00020547,2]
[375282187,1753615865528,-460.0,0.00020547,2]
[375282188,1753615865539,-460.0,0.00020547,2]
[375282189,1753615865548,-460.0,0.00020547,2]
[375282190,1753615865558,-460.0,0.00020547,2]
[375282191,1753615865567,-460.0,0.00020547,2]
[375282192,1753615865577,-628.25,0.00020547,2]
[375282193,1753615865585,-460.0,0.00020547,2]
[375282194,1753615865595,-460.0,0.00020547,2]
[375282195,1753615865604,-428.43032593,0.00020547,2]
[375282196,1753615865612,-588.88,0.00020547,2]
[375282197,1753615865621,-472.21419956,0.00020547,2]
[375282198,1753615865631,-460.0,0.00020547,2]
[375282199,1753615865640,-460.0,0.00020547,2]
[375282200,1753615865648,-460.0,0.00020547,2]
[375282201,1753615865657,-460.0,0.00020547,2]
[375282202,1753615865666,-460.0,0.00020547,2]
[375282203,1753615865675,-482.95,0.00020547,2]
[375282204,1753615865684,-460.0,0.00020547,2]
[375282205,1753615865692,-376.37388807,0.00020547,2]
[375282206,1753615865707,-83.62611193,0.00020547,2]
[375282207,1753615865716,-460.0,0.00020547,2]
[375282208,1753615865725,-460.0,0.00020547,2]
[375282209,1753615865734,-387.34693302,0.00020547,2]
[375282210,1753615865744,-460.0,0.00020547,2]
[375282211,1753615865753,-460.0,0.00020547,2]
[375282212,1753615865762,-243.0220184,0.00020547,2]
[375282213,1753615865774,-216.9779816,0.00020547,2]
[375282214,1753615865784,-460.0,0.00020547,2]
[375282215,1753615865794,-460.0,0.00020547,2]
[375282216,1753615865803,-460.0,0.00020547,2]
[375282217,1753615865812,-460.0,0.00020547,2]
[375282218,1753615865821,-151.0,0.00020547,2]
[375282219,1753615865831,-460.0,0.00020547,2]
[375282220,1753615865841,-460.0,0.00020547,2]
[375282221,1753615865850,-151.0,0.00020547,2]
[375282222,1753615865859,-151.0,0.00020547,2]
[375282223,1753615865869,-460.0,0.00020547,2]
[375282224,1753615865879,-460.0,0.00020547,2]
[375282225,1753615865888,-169.793788,0.00020547,2]
[375282226,1753615865897,-14.56042972,0.00020547,2]
[375282227,1753615865914,-460.0,0.00019178,2]
[375282228,1753615865924,-445.43957028,0.00020547,2]
[375282229,1753615865935,-460.0,0.00020547,2]
[375282230,1753615865945,-481.11,0.00020547,2]
[375282231,1753615865954,-460.0,0.00020547,2]
[375282232,1753615865963,-700.52,0.00020547,2]
[375282233,1753615865973,-178.495327,0.00020547,2]
[375282234,1753615865982,-1158.903073,0.00020547,2]
[375282235,1753615865993,-460.0,0.00020547,2]
[375282236,1753615866003,-522.64,0.00020547,2]
[375282237,1753615866012,-460.0,0.00020547,2]
[375282238,1753615866022,-1158.903073,0.00020547,2]
[375282239,1753615866031,-460.0,0.00020547,2]
[375282240,1753615866042,-473.84,0.00020547,2]
[375282241,1753615866051,-460.0,0.00020547,2]
[375282242,1753615866061,-460.0,0.00020547,2]
[375282243,1753615866072,-467.11704728,0.00020547,2]
[375282244,1753615866082,-460.0,0.00020547,2]
[375282245,1753615866092,-460.0,0.00020547,2]
[375282246,1753615866102,-460.0,0.00020547,2]
[375282247,1753615866112,-460.0,0.00020547,2]
[375282248,1753615866121,-460.0,0.00020547,2]
[375282249,1753615866132,-460.0,0.00020547,2]
[375282250,1753615866141,-460.0,0.00020547,2]
[375282251,1753615866153,-460.0,0.00020547,2]
[375282252,1753615866163,-460.0,0.00020547,2]
[375282253,1753615866173,-460.0,0.00020547,2]
[375282254,1753615866182,-460.0,0.00020547,2]
[375282255,1753615866191,-2233.63,0.00020547,2]
[375282256,1753615866201,-460.0,0.00020547,2]
[375282257,1753615866210,-460.0,0.00020547,2]
[375282258,1753615866219,-1630.4,0.00020547,2]
[375282259,1753615866228,-460.0,0.00020547,2]
[375282260,1753615866238,-460.0,0.00020547,2]
[375282261,1753615866247,-772.54,0.00020547,2]
[375282262,1753615866258,-460.0,0.00020547,2]
[375282263,1753615866267,-460.0,0.00020547,2]
[375282264,1753615866276,-565.5,0.00020547,2]
[375282265,1753615866285,-460.0,0.00020547,2]
[375282266,1753615866295,-460.0,0.00020547,2]
[375282267,1753615866304,-460.0,0.00020547,2]
[375282268,1753615866313,-460.0,0.00020547,2]
[375282269,1753615866322,-466.14,0.00020547,2]
[375282270,1753615866332,-460.0,0.00020547,2]
[375282271,1753615866341,-460.0,0.00020547,2]
[375282272,1753615866350,-554.36,0.00020547,2]
[375282273,1753615866359,-460.0,0.00020547,2]
[375282274,1753615866368,-460.0,0.00020547,2]
[375282275,1753615866378,-460.0,0.00020547,2]
[375282276,1753615866387,-939.82,0.00020547,2]
[375282277,1753615866398,-2047.96,0.00020547,2]
[375282278,1753615866408,-1111.37,0.00020547,2]
[375282279,1753615866418,-460.0,0.00020547,2]
[375282280,1753615866427,-460.0,0.00020547,2]
[375282281,1753615866437,-1411.8,0.00020547,2]
[375282282,1753615866446,-601.19,0.00020547,2]
[375282283,1753615866458,-460.0,0.00020547,2]
[375282284,1753615866467,-460.0,0.00020547,2]
[375282285,1753615866477,-460.0,0.00020547,2]
[375282286,1753615866486,-460.0,0.00020547,2]
[375282287,1753615866496,-460.0,0.00020547,2]
[375282288,1753615866506,-460.0,0.00020547,2]
[375282289,1753615866519,-460.0,0.00020547,2]
[375282290,1753615866529,-460.0,0.00020547,2]
[375282291,1753615866542,-460.0,0.00020547,2]
[375282292,1753615866552,-734.55,0.00020547,2]
[375282293,1753615866562,-460.0,0.00020547,2]
[375282294,1753615866572,-463.73535859,0.00020547,2]
[375282295,1753615866583,-817.55,0.00020547,2]
[375282296,1753615866594,-460.0,0.00020547,2]
[375282297,1753615866604,-460.0,0.00020547,2]
[375282298,1753615866614,-460.0,0.00020547,2]
[375282299,1753615866623,-467.25968795,0.00020547,2]
[375282300,1753615866632,-1243.43,0.00020547,2]
[375282301,1753615866642,-460.0,0.00020547,2]
[375282302,1753615866652,-460.0,0.00020547,2]
[375282303,1753615866661,-201.85185083,0.00020547,2]
[375282304,1753615866670,-460.0,0.00020547,2]
[375282305,1753615866680,-460.0,0.00020547,2]
[375282306,1753615866690,-460.0,0.00020547,2]
[375282307,1753615866699,-460.0,0.00020547,2]
[375282308,1753615866709,-460.0,0.00020547,2]
[375282309,1753615866718,-460.0,0.00020547,2]
[375282310,1753615866727,-514.34998253,0.00020547,2]
[375282311,1753615866737,-460.0,0.00020547,2]
[375282312,1753615866747,-176.18213583,0.00020547,2]
[375282313,1753615866756,-460.0,0.00020547,2]
[375282314,1753615866766,-460.0,0.00020547,2]
[375282315,1753615866775,-460.0,0.00020547,2]
[375282316,1753615866784,-4262.34,0.00020547,2]
[375282317,1753615866795,-460.0,0.00020547,2]
[375282318,1753615866805,-3803.86,0.00020547,2]
[375282319,1753615866814,-460.0,0.00020547,2]
[375282320,1753615866824,-471.21,0.00020547,2]
[375282321,1753615866833,-492.93,0.00020547,2]
[375282322,1753615866843,-1381.0,0.00020547,2]
[375282323,1753615866852,-460.0,0.00020547,2]
[375282324,1753615866862,-1164.21,0.00020547,2]
[375282325,1753615866872,-460.0,0.00020547,2]
[375282326,1753615866882,-460.0,0.00020547,2]
[375282327,1753615866891,-460.0,0.00020547,2]
[375282328,1753615866901,-460.0,0.00020547,2]
[375282329,1753615866910,-635.9,0.00020547,2]
[375282330,1753615866919,-1473.58,0.00020547,2]
[375282331,1753615866929,-460.0,0.00020547,2]
[375282332,1753615866938,-460.0,0.00020547,2]
[375282333,1753615866947,-460.0,0.00020547,2]
[375282334,1753615866957,-460.0,0.00020547,2]
[375282335,1753615866967,-460.0,0.00020547,2]
[375282336,1753615866977,-460.0,0.00020547,2]
[375282337,1753615866987,-460.0,0.00020547,2]